fUST/lending_fUST_20250420
["ID","MTS","AMOUNT","RATE_DAILY","PERIOD"]
[358419962,1745110247011,-500.0,0.00019178,2]
[358419963,1745110247021,-500.0,0.00019178,2]
[358419964,1745110247030,-382.63486615,0.00019178,2]
[358419965,1745110247071,-117.36513385,0.00019178,2]
[358419966,1745110247080,-500.0,0.00019178,2]
[358419967,1745110247089,-500.0,0.00019178,2]
[358419968,1745110247098,-500.0,0.00019178,2]
[358419969,1745110247107,-500.0,0.00019178,2]
[358419970,1745110247116,-500.0,0.00019178,2]
[358419971,1745110247126,-662.14,0.00019178,2]
[358419972,1745110247135,-500.0,0.00019178,2]
[358419973,1745110247144,-500.0,0.00019178,2]
[358419974,1745110247153,-500.0,0.00019178,2]
[358419975,1745110247163,-500.0,0.00019178,2]
[358419976,1745110247172,-646.89,0.00019178,2]
[358419977,1745110247181,-500.0,0.00019178,2]
[358419978,1745110247190,-500.0,0.00019178,2]
[358419979,1745110247199,-500.0,0.00019178,2]
[358419980,1745110247208,-500.0,0.00019178,2]
[358419981,1745110247217,-501.32548058,0.00019178,2]
[358419982,1745110247226,-500.0,0.00019178,2]
[358419983,1745110247236,-500.0,0.00019178,2]
[358419984,1745110247246,-500.0,0.00019178,2]
[358419985,1745110247257,-1012.04,0.00019178,2]
[358419986,1745110247268,-500.0,0.00019178,2]
[358419987,1745110247278,-1630.34,0.00019178,2]
[358419988,1745110247287,-500.0,0.00019178,2]
[358419989,1745110247296,-500.0,0.00019178,2]
[358419990,1745110247306,-521.1983276,0.00019178,2]
[358419991,1745110247315,-597.06,0.00019178,2]
[358419992,1745110247325,-500.0,0.00019178,2]
[358419993,1745110247334,-500.0,0.00019178,2]
[358419994,1745110247343,-516.87,0.00019178,2]
[358419995,1745110247352,-719.7,0.00019178,2]
[358419996,1745110247361,-500.0,0.00019178,2]
[358419997,1745110247370,-500.0,0.00019178,2]
[358419998,1745110247380,-500.0,0.00019178,2]
[358419999,1745110247390,-500.0,0.00019178,2]
[358420000,1745110247400,-500.0,0.00019178,2]
[358420001,1745110247409,-7829.92,0.00019178,2]
[358420002,1745110247419,-500.0,0.00019178,2]
[358420003,1745110247428,-93.92370544,0.00019178,2]
[358420004,1745110304747,-151.40253037,0.00018075,2]
[358420007,1745110399216,187.05038738,0.00017975,3]
[358420009,1745110453308,5770.93453238,0.00017958,2]
[358420010,1745110453335,10483.90982312,0.00017958,2]
[358420018,1745111123059,7084.54282149,0.00018,2]
[358420032,1745111432301,-98.59746963,0.00018075,2]
[358420033,1745111432311,-245.24624641,0.00018075,2]
[358420034,1745111432320,-199.5988988,0.00018075,2]
[358420035,1745111432330,-454.92924451,0.00018075,2]
[358420036,1745111432340,-160.0,0.00018763,3]
[358420037,1745111432350,-234.39478765,0.00018796,2]
[358420038,1745111432360,-300.0,0.00018799,2]
[358420039,1745111432370,-300.0,0.00018799,2]
[358420040,1745111432379,-2110.12327359,0.000188,2]
[358420041,1745111432390,-5000.0,0.000188,2]
[358420042,1745111432400,-234.39478761,0.00018825,2]
[358420043,1745111432410,-234.39478761,0.00018855,2]
[358420044,1745111432420,-160.0,0.00018859,4]
[358420045,1745111432429,-234.39478761,0.00018884,2]
[358420046,1745111432439,-500.0,0.00018895,2]
[358420047,1745111432449,-500.0,0.00018895,2]
[358420048,1745111432458,-301.15312547,0.00018895,2]
[358420049,1745111432468,-534.99651069,0.00018895,2]
[358420050,1745111432477,-500.0,0.00018895,2]
[358420051,1745111432487,-500.0,0.00018895,2]
[358420052,1745111432496,-500.0,0.00018895,2]
[358420053,1745111432505,-500.0,0.00018895,2]
[358420054,1745111432515,-500.0,0.00018895,2]
[358420055,1745111432525,-500.0,0.00018895,2]
[358420056,1745111432535,-19558.91025347,0.00018896,2]
[358420057,1745111432547,-449.03613758,0.00018896,2]
[358420058,1745111432559,-5390.73142678,0.00018896,2]
[358420059,1745111432570,-24601.32218217,0.00018896,2]
[358420060,1745111432580,-1192.48434015,0.000189,2]
[358420061,1745111432590,-402.0,0.00018905,2]
[358420062,1745111432599,-234.39478761,0.00018913,2]
[358420063,1745111432609,-160.0,0.00018955,5]
[358420064,1745111432618,-207.4,0.00018967,2]
[358420065,1745111432627,-495.22,0.00018968,3]
[358420066,1745111432637,-500.0,0.00018977,2]
[358420067,1745111432646,-612.13108951,0.00018977,2]
[358420068,1745111432656,-33768.50555494,0.00018978,2]
[358420069,1745111432667,-20815.70315688,0.00018978,2]
[358420070,1745111432677,-123186.67857705,0.00018978,2]
[358420074,1745111438475,-569.65591548,0.00018978,3]
[358420075,1745111438486,-792.2,0.00018978,3]
[358420076,1745111438533,-1020.0,0.00018978,3]
[358420077,1745111438545,-6721.43893187,0.00018978,3]
[358420078,1745111438554,-11390.79947574,0.00018978,2]
[358420079,1745111438647,-1474.68474239,0.00018978,2]
[358420080,1745111438705,-37837.49467691,0.00018978,2]
[358420082,1745111440663,-419.87295693,0.00018978,2]
[358420083,1745111440673,-543.0,0.00019013,2]
[358420084,1745111440683,-707.0,0.00019013,2]
[358420085,1745111440693,-160.0,0.00019051,6]
[358420086,1745111440703,-563.8864832,0.00019082,2]
[358420087,1745111440712,-301.346,0.0001914,2]
[358420088,1745111440721,-160.0,0.00019147,7]
[358420089,1745111440731,-500.0,0.00019173,2]
[358420090,1745111440740,-500.0,0.00019173,2]
[358420091,1745111440749,-500.0,0.00019173,2]
[358420092,1745111440759,-500.0,0.00019173,2]
[358420093,1745111440768,-500.0,0.00019173,2]
[358420094,1745111440777,-500.0,0.00019173,2]
[358420095,1745111440787,-500.0,0.00019173,2]
[358420096,1745111440796,-500.0,0.00019173,2]
[358420097,1745111440806,-500.0,0.00019173,2]
[358420098,1745111440816,-500.0,0.00019173,2]
[358420099,1745111440826,-500.0,0.00019173,2]
[358420100,1745111440836,-500.0,0.00019173,2]
[358420101,1745111440846,-500.0,0.00019173,2]
[358420102,1745111440855,-500.0,0.00019173,2]
[358420103,1745111440865,-279.28600812,0.00019178,2]
[358420104,1745111440875,-500.0,0.00019178,2]
[358420105,1745111440885,-338.94024914,0.00019178,2]
[358420106,1745111440895,-500.0,0.00019178,2]
[358420107,1745111440905,-634.68481573,0.00019178,2]
[358420108,1745111440914,-500.0,0.00019178,2]
[358420109,1745111440924,-472.03588821,0.00019178,2]
[358420110,1745111440933,-500.0,0.00019178,2]
[358420111,1745111440942,-500.0,0.00019178,2]
[358420112,1745111440951,-500.0,0.00019178,2]
[358420113,1745111440960,-827.07,0.00019178,2]
[358420114,1745111440970,-500.0,0.00019178,2]
[358420115,1745111440979,-500.0,0.00019178,2]
[358420116,1745111440988,-500.0,0.00019178,2]
[358420117,1745111440998,-500.0,0.00019178,2]
[358420118,1745111441007,-500.0,0.00019178,2]
[358420119,1745111441016,-500.0,0.00019178,2]
[358420120,1745111441025,-500.0,0.00019178,2]
[358420121,1745111441035,-643.74381875,0.00019178,2]
[358420122,1745111441044,-500.0,0.00019178,2]
[358420123,1745111441054,-572.18,0.00019178,2]
[358420124,1745111441063,-500.0,0.00019178,2]
[358420125,1745111441073,-500.0,0.00019178,2]
[358420126,1745111441082,-500.0,0.00019178,2]
[358420127,1745111441091,-500.0,0.00019178,2]
[358420128,1745111441101,-969.87,0.00019178,2]
[358420129,1745111441110,-562.96991623,0.00019178,2]
[358420130,1745111441120,-500.0,0.00019178,2]
[358420131,1745111441129,-550.7,0.00019178,2]
[358420132,1745111441138,-619.93,0.00019178,2]
[358420133,1745111441147,-500.0,0.00019178,2]
[358420134,1745111441156,-500.0,0.00019178,2]
[358420135,1745111441166,-500.0,0.00019178,2]
[358420136,1745111441177,-500.0,0.00019178,2]
[358420137,1745111441186,-500.0,0.00019178,2]
[358420138,1745111441195,-500.0,0.00019178,2]
[358420139,1745111441205,-406.07629456,0.00019178,2]
[358420140,1745111441214,-574.44679997,0.00019178,2]
[358420141,1745111441223,-500.0,0.00019178,2]
[358420142,1745111441232,-689.71,0.00019178,2]
[358420143,1745111441241,-783.18,0.00019178,2]
[358420144,1745111441250,-500.0,0.00019178,2]
[358420145,1745111441260,-552.73,0.00019178,2]
[358420146,1745111441269,-500.0,0.00019178,2]
[358420147,1745111441278,-380.12898454,0.00019178,2]
[358420148,1745111441288,-500.0,0.00019178,2]
[358420149,1745111441297,-500.0,0.00019178,2]
[358420150,1745111441306,-505.45591761,0.00019178,2]
[358420151,1745111441316,-500.0,0.00019178,2]
[358420152,1745111441325,-530.69,0.00019178,2]
[358420153,1745111441335,-612.42,0.00019178,2]
[358420154,1745111441344,-500.0,0.00019178,2]
[358420155,1745111441354,-500.0,0.00019178,2]
[358420156,1745111441363,-500.0,0.00019178,2]
[358420157,1745111441373,-684.33,0.00019178,2]
[358420158,1745111441382,-531.39302848,0.00019178,2]
[358420159,1745111441391,-500.0,0.00019178,2]
[358420160,1745111441400,-927.72,0.00019178,2]
[358420161,1745111441410,-756.59,0.00019178,2]
[358420162,1745111441420,-500.0,0.00019178,2]
[358420163,1745111441431,-500.0,0.00019178,2]
[358420164,1745111441441,-500.0,0.00019178,2]
[358420165,1745111441450,-500.0,0.00019178,2]
[358420166,1745111441460,-500.0,0.00019178,2]
[358420167,1745111441469,-500.0,0.00019178,2]
[358420168,1745111441479,-500.0,0.00019178,2]
[358420169,1745111441489,-500.0,0.00019178,2]
[358420170,1745111441498,-500.0,0.00019178,2]
[358420171,1745111441507,-500.0,0.00019178,2]
[358420172,1745111441517,-500.0,0.00019178,2]
[358420173,1745111441526,-500.0,0.00019178,2]
[358420174,1745111441535,-592.18961946,0.00019178,2]
[358420175,1745111441544,-500.0,0.00019178,2]
[358420176,1745111441553,-500.0,0.00019178,2]
[358420177,1745111441563,-838.8,0.00019178,2]
[358420178,1745111441572,-500.0,0.00019178,2]
[358420179,1745111441581,-569.64340689,0.00019178,2]
[358420180,1745111441590,-151.0,0.00019178,2]
[358420181,1745111441599,-151.0,0.00019178,2]
[358420182,1745111441609,-151.0,0.00019178,2]
[358420183,1745111441618,-151.0,0.00019178,2]
[358420184,1745111441626,-151.0,0.00019178,2]
[358420185,1745111441636,-151.0,0.00019178,2]
[358420186,1745111441645,-151.0,0.00019178,2]
[358420187,1745111441654,-657.44,0.00019178,2]
[358420188,1745111441664,-500.0,0.00019178,2]
[358420189,1745111441674,-1203.4,0.00019178,2]
[358420190,1745111441684,-660.78,0.00019178,2]
[358420191,1745111441693,-500.0,0.00019178,2]
[358420192,1745111441702,-500.0,0.00019178,2]
[358420193,1745111441712,-500.0,0.00019178,2]
[358420194,1745111441722,-500.0,0.00019178,2]
[358420195,1745111441731,-500.0,0.00019178,2]
[358420196,1745111441741,-500.0,0.00019178,2]
[358420197,1745111441750,-500.0,0.00019178,2]
[358420198,1745111441759,-500.0,0.00019178,2]
[358420199,1745111441768,-500.0,0.00019178,2]
[358420200,1745111441778,-500.0,0.00019178,2]
[358420201,1745111441789,-500.0,0.00019178,2]
[358420202,1745111441798,-597.07,0.00019178,2]
[358420203,1745111441807,-585.93,0.00019178,2]
[358420204,1745111441817,-1562.41,0.00019178,2]
[358420205,1745111441827,-500.0,0.00019178,2]
[358420206,1745111441837,-500.0,0.00019178,2]
[358420207,1745111441846,-500.0,0.00019178,2]
[358420208,1745111441855,-500.0,0.00019178,2]
[358420209,1745111441864,-500.0,0.00019178,2]
[358420210,1745111441874,-500.0,0.00019178,2]
[358420211,1745111441883,-634.55,0.00019178,2]
[358420212,1745111441893,-500.0,0.00019178,2]
[358420213,1745111441902,-500.0,0.00019178,2]
[358420214,1745111441911,-500.0,0.00019178,2]
[358420215,1745111441921,-513.29,0.00019178,2]
[358420216,1745111441931,-500.0,0.00019178,2]
[358420217,1745111441941,-500.0,0.00019178,2]
[358420218,1745111441952,-500.0,0.00019178,2]
[358420219,1745111441962,-500.0,0.00019178,2]
[358420220,1745111441973,-500.0,0.00019178,2]
[358420221,1745111441982,-591.76,0.00019178,2]
[358420222,1745111441992,-500.0,0.00019178,2]
[358420223,1745111442001,-3436.62,0.00019178,2]
[358420224,1745111442011,-500.0,0.00019178,2]
[358420225,1745111442020,-466.11068128,0.00019178,2]
[358420226,1745111442029,-500.0,0.00019178,2]
[358420227,1745111442039,-500.0,0.00019178,2]
[358420228,1745111442048,-556.03,0.00019178,2]
[358420229,1745111442058,-500.0,0.00019178,2]
[358420230,1745111442069,-500.0,0.00019178,2]
[358420231,1745111442079,-7503.68,0.00019178,2]
[358420232,1745111442090,-500.0,0.00019178,2]
[358420233,1745111442099,-500.0,0.00019178,2]
[358420234,1745111442110,-803.58,0.00019178,2]
[358420235,1745111442119,-27.46172031,0.00019178,2]
[358420236,1745111442135,-674.31827969,0.00019178,2]
[358420237,1745111442144,-1186.01,0.00019178,2]
[358420238,1745111442154,-367.81502963,0.00019178,2]
[358420239,1745111442166,-132.18497037,0.00019178,2]
[358420240,1745111442176,-413.00872953,0.00019178,2]
[358420241,1745111442188,-86.99127047,0.00019178,2]
[358420242,1745111442200,-500.0,0.00019178,2]
[358420243,1745111442210,-500.0,0.00019178,2]
[358420244,1745111442220,-500.0,0.00019178,2]
[358420245,1745111442230,-500.0,0.00019178,2]
[358420246,1745111442239,-500.0,0.00019178,2]
[358420247,1745111442249,-500.0,0.00019178,2]
[358420248,1745111442258,-500.0,0.00019178,2]
[358420249,1745111442268,-500.0,0.00019178,2]
[358420250,1745111442277,-500.0,0.00019178,2]
[358420251,1745111442287,-726.7,0.00019178,2]
[358420252,1745111442296,-1091.43,0.00019178,2]
[358420253,1745111442307,-500.0,0.00019178,2]
[358420254,1745111442317,-707.93,0.00019178,2]
[358420255,1745111442327,-500.0,0.00019178,2]
[358420256,1745111442336,-1286.54,0.00019178,2]
[358420257,1745111442346,-585.92,0.00019178,2]
[358420258,1745111442355,-695.09,0.00019178,2]
[358420259,1745111442364,-667.87,0.00019178,2]
[358420260,1745111442373,-500.0,0.00019178,2]
[358420261,1745111442383,-500.0,0.00019178,2]
[358420262,1745111442392,-577.75,0.00019178,2]
[358420263,1745111442402,-844.22,0.00019178,2]
[358420264,1745111442411,-500.0,0.00019178,2]
[358420265,1745111442420,-500.0,0.00019178,2]
[358420266,1745111442429,-500.0,0.00019178,2]
[358420267,1745111442439,-500.0,0.00019178,2]
[358420268,1745111442449,-500.0,0.00019178,2]
[358420269,1745111442459,-1203.4,0.00019178,2]
[358420270,1745111442468,-697.29,0.00019178,2]
[358420271,1745111442478,-500.0,0.00019178,2]
[358420272,1745111442487,-500.0,0.00019178,2]
[358420273,1745111442496,-2119.29,0.00019178,2]
[358420274,1745111442506,-771.53,0.00019178,2]
[358420275,1745111442680,-500.0,0.00019178,2]
[358420276,1745111442690,-500.0,0.00019178,2]
[358420277,1745111442700,-500.0,0.00019178,2]
[358420278,1745111442710,-500.0,0.00019178,2]
[358420279,1745111442719,-612.55,0.00019178,2]
[358420280,1745111442729,-500.0,0.00019178,2]
[358420281,1745111442738,-500.0,0.00019178,2]
[358420282,1745111442747,-500.0,0.00019178,2]
[358420283,1745111442756,-822.12,0.00019178,2]
[358420284,1745111442766,-500.0,0.00019178,2]
[358420285,1745111442775,-500.0,0.00019178,2]
[358420286,1745111442784,-779.21,0.00019178,2]
[358420287,1745111442793,-500.0,0.00019178,2]
[358420288,1745111442802,-500.0,0.00019178,2]
[358420289,1745111442812,-500.0,0.00019178,2]
[358420290,1745111442821,-500.0,0.00019178,2]
[358420291,1745111442831,-500.0,0.00019178,2]
[358420292,1745111442840,-500.0,0.00019178,2]
[358420293,1745111442850,-2443.74,0.00019178,2]
[358420294,1745111442859,-500.0,0.00019178,2]
[358420295,1745111442869,-500.0,0.00019178,2]
[358420296,1745111442879,-1932.76,0.00019178,2]
[358420297,1745111442888,-500.0,0.00019178,2]
[358420298,1745111442897,-500.0,0.00019178,2]
[358420299,1745111442906,-500.0,0.00019178,2]
[358420301,1745111442916,-500.0,0.00019178,2]
[358420303,1745111442925,-500.0,0.00019178,2]
[358420305,1745111442934,-2573.11,0.00019178,2]
[358420306,1745111442944,-500.0,0.00019178,2]
[358420307,1745111442953,-4349.01,0.00019178,2]
[358420308,1745111442963,-677.85,0.00019178,2]
[358420309,1745111442972,-500.0,0.00019178,2]
[358420310,1745111442981,-500.0,0.00019178,2]
[358420311,1745111442991,-500.0,0.00019178,2]
[358420312,1745111443000,-500.0,0.00019178,2]
[358420313,1745111443009,-500.0,0.00019178,2]
[358420314,1745111443017,-500.0,0.00019178,2]
[358420315,1745111443026,-500.0,0.00019178,2]
[358420316,1745111443035,-123.34604028,0.00019178,2]
[358420317,1745111443329,-376.65395972,0.00019178,2]
[358420318,1745111443339,-500.0,0.00019178,2]
[358420319,1745111443349,-500.0,0.00019178,2]
[358420320,1745111443358,-500.0,0.00019178,2]
[358420321,1745111443368,-500.0,0.00019178,2]
[358420322,1745111443378,-500.0,0.00019178,2]
[358420323,1745111443387,-500.0,0.00019178,2]
[358420324,1745111443396,-312.08587048,0.00019178,2]
[358420325,1745111443409,-187.91412952,0.00019178,2]
[358420326,1745111443418,-500.0,0.00019178,2]
[358420327,1745111443428,-49.25395567,0.00019178,2]
[358420328,1745111443439,-476.03236049,0.00019178,2]
[358420329,1745111443451,-119.46368384,0.00019178,2]
[358420330,1745111443460,-500.0,0.00019178,2]
[358420332,1745111443470,-500.0,0.00019178,2]
[358420333,1745111443479,-500.0,0.00019178,2]
[358420335,1745111443488,-500.0,0.00019178,2]
[358420337,1745111443498,-5423.70617103,0.00019178,2]
[358420345,1745111446295,-524.27496881,0.00019178,2]
[358420346,1745111446307,-4997.8498302,0.00019178,2]
[358420347,1745111446318,-3046.74680909,0.00019178,2]
[358420348,1745111446365,-54.82222087,0.00019178,2]
[358420349,1745111446375,-500.0,0.00019178,2]
[358420350,1745111446385,-500.0,0.00019178,2]
[358420351,1745111446394,-402.50569681,0.00019178,2]
[358420352,1745111446404,-500.0,0.00019178,2]
[358420353,1745111446414,-500.0,0.00019178,2]
[358420354,1745111446423,-500.0,0.00019178,2]
[358420355,1745111446432,-500.0,0.00019178,2]
[358420356,1745111446442,-1084.22,0.00019178,2]
[358420357,1745111446451,-500.0,0.00019178,2]
[358420358,1745111446461,-500.0,0.00019178,2]
[358420359,1745111446474,-500.0,0.00019178,2]
[358420360,1745111446483,-500.0,0.00019178,2]
[358420361,1745111446493,-500.0,0.00019178,2]
[358420362,1745111446503,-5028.74,0.00019178,2]
[358420363,1745111446513,-500.0,0.00019178,2]
[358420364,1745111446522,-859.39,0.00019178,2]
[358420365,1745111446532,-500.0,0.00019178,2]
[358420366,1745111446541,-500.0,0.00019178,2]
[358420367,1745111446554,-500.0,0.00019178,2]
[358420368,1745111446563,-722.54,0.00019178,2]
[358420369,1745111446573,-500.0,0.00019178,2]
[358420370,1745111446583,-500.0,0.00019178,2]
[358420371,1745111446593,-582.06,0.00019178,2]
[358420372,1745111446603,-300.0,0.00019178,2]
[358420373,1745111446613,-160.0,0.00019243,8]
[358420374,1745111446624,-350.66586296,0.0001928,2]
[358420375,1745111446634,-151.0,0.00019329,2]
[358420376,1745111446643,-2953.7284131,0.00019329,2]
[358420382,1745111767794,480.6717837,0.00018006,2]
[358420427,1745112632513,-427.4171684,0.00018126,2]
[358420428,1745112632523,-263.781907,0.00018136,2]
[358420429,1745112632533,-2284.14668733,0.000189,2]
[358420430,1745112632543,-2000.0,0.00018904,2]
[358420431,1745112632552,-1846.3578644,0.00018977,2]
[358420432,1745112632561,-300.0,0.00018999,2]
[358420433,1745112632571,-300.0,0.00018999,2]
[358420434,1745112632582,-2427.03790272,0.00019,2]
[358420435,1745112632592,-154.00276591,0.00019,2]
[358420436,1745112632601,-1646.0,0.00019,2]
[358420437,1745112632611,-822.0,0.00019,2]
[358420438,1745112632620,-207.4,0.00019067,2]
[358420439,1745112632631,-500.0,0.00019074,2]
[358420440,1745112632640,-500.0,0.00019074,2]
[358420441,1745112632649,-500.0,0.00019074,2]
[358420442,1745112632659,-500.0,0.00019074,2]
[358420443,1745112632668,-215.70556665,0.00019074,2]
[358420444,1745112632678,-500.0,0.00019074,2]
[358420445,1745112632688,-500.0,0.00019074,2]
[358420446,1745112632698,-500.0,0.00019074,2]
[358420447,1745112632708,-500.0,0.00019074,2]
[358420448,1745112632717,-500.0,0.00019074,2]
[358420449,1745112632726,-500.0,0.00019074,2]
[358420450,1745112632736,-500.0,0.00019074,2]
[358420451,1745112632746,-500.0,0.00019074,2]
[358420452,1745112632756,-500.0,0.00019074,2]
[358420453,1745112632765,-500.0,0.00019077,2]
[358420454,1745112632775,-405.03901112,0.00019077,2]
[358420455,1745112632787,-199240.71892278,0.00019078,2]
[358420456,1745112632799,-156571.72053269,0.00019078,2]
[358420457,1745112632809,-5500.39719591,0.000191,2]
[358420488,1745112646767,-540.23961161,0.00019038,2]
[358420489,1745112646780,-4.99938839,0.00019038,2]
[358420490,1745112646791,-2399.60280409,0.000191,2]
[358420491,1745112646801,-340.02585683,0.000191,2]
[358420492,1745112646813,-660.64414317,0.000191,2]
[358420493,1745112646823,-500.0,0.00019173,2]
[358420494,1745112646832,-500.0,0.00019173,2]
[358420495,1745112646842,-500.0,0.00019173,2]
[358420496,1745112646853,-500.0,0.00019173,2]
[358420497,1745112646864,-500.0,0.00019173,2]
[358420498,1745112646873,-500.14876683,0.00019173,2]
[358420499,1745112646883,-181.54057304,0.00019173,2]
[358420513,1745112982307,996.094,0.0001801,2]
[358420518,1745113141040,-160.00680281,0.00018027,2]
[358420520,1745113153985,-15.21875919,0.00018027,2]
[358420521,1745113154010,-136.78124081,0.00018027,2]
[358420522,1745113164291,5000.0,0.00016807,2]
[358420579,1745113832668,-938.3173015,0.00018077,2]
[358420581,1745113832679,-250.0,0.00018077,2]
[358420583,1745113832689,-266.4501963,0.00018118,2]
[358420585,1745113832699,-166.6250911,0.00018177,2]
[358420586,1745113832708,-1620.15990689,0.00018799,2]
[358420588,1745113832718,-300.0,0.00018897,2]
[358420590,1745113832727,-300.0,0.00018898,2]
[358420592,1745113832736,-3704.721495,0.00018898,2]
[358420703,1745113838832,-500.0,0.00018897,2]
[358420705,1745113838842,-401.0,0.00018897,2]
[358421144,1745113846678,-99.0,0.00018897,2]
[358421145,1745113846687,-173.19120742,0.00018897,2]
[358421146,1745113846760,-326.80879258,0.00018897,2]
[358421147,1745113846769,-500.0,0.00018897,2]
[358421148,1745113846779,-500.0,0.00018897,2]
[358421149,1745113846789,-500.0,0.00018897,2]
[358421150,1745113846798,-500.0,0.00018897,2]
[358421151,1745113846808,-500.0,0.00018897,2]
[358421152,1745113846817,-500.0,0.00018897,2]
[358421153,1745113846826,-500.0,0.00018897,2]
[358421154,1745113846836,-500.0,0.00018897,2]
[358421155,1745113846846,-500.0,0.00018897,2]
[358421156,1745113846855,-556.05911171,0.00018897,2]
[358421157,1745113846865,-500.0,0.00018897,2]
[358421158,1745113846874,-500.0,0.00018897,2]
[358421159,1745113846883,-500.0,0.00018897,2]
[358421160,1745113846893,-500.0,0.00018897,2]
[358421161,1745113846903,-500.0,0.00018897,2]
[358421162,1745113846913,-500.0,0.00018897,2]
[358421163,1745113846923,-500.0,0.00018897,2]
[358421164,1745113846932,-500.0,0.00018897,2]
[358421165,1745113846942,-29012.47520426,0.00018898,2]
[358421166,1745113846951,-640.26708458,0.00018899,2]
[358421167,1745113846961,-88990.85287902,0.000189,2]
[358421168,1745113846973,-7664.54831434,0.000189,2]
[358421269,1745115031835,-1008.88,0.000188,3]
[358421271,1745115031845,-1417.63991852,0.000188,2]
[358421272,1745115031855,-277.65524732,0.000188,2]
[358421274,1745115031865,-300.0,0.000188,2]
[358421276,1745115031875,-5000.0,0.000188,2]
[358421278,1745115031885,-300.0,0.00018897,2]
[358421280,1745115031895,-300.0,0.00018898,2]
[358421281,1745115031905,-9277.28274849,0.000189,2]
[358421283,1745115031915,-34438.08894703,0.000189,2]
[358421285,1745115031937,-1951.95553161,0.000189,2]
[358421286,1745115031946,-1751.76849649,0.000189,2]
[358421287,1745115031956,-331.3358872,0.00018904,2]
[358421288,1745115031965,-2373.00061813,0.00018988,2]
[358421329,1745115038059,-351.27555648,0.00018988,2]
[358421363,1745115046111,-4524.28346142,0.00018988,2]
[358421364,1745115046120,-500.0,0.00018988,2]
[358421365,1745115046130,-279.29512385,0.00018988,2]
[358421372,1745115371063,1000.0,0.0001801,2]
[358421373,1745115378601,1000.0,0.0001801,2]
[358421375,1745115384607,1000.0,0.0001801,2]
[358421376,1745115389819,1000.0,0.0001801,2]
[358421377,1745115400911,1000.0,0.0001801,2]
[358421379,1745115409865,1000.0,0.0001801,2]
[358421380,1745115410422,-428.63707057,0.0001804,2]
[358421381,1745115417097,1000.0,0.0001801,2]
[358421382,1745115423425,1000.0,0.0001801,2]
[358421383,1745115440412,752.82,0.0001801,2]
[358421385,1745115491708,571.36,0.0001801,2]
[358421392,1745115647077,1137.89,0.0001801,2]
[358421396,1745115864797,22501.9328438,0.0001796,2]
[358421440,1745116232126,-300.0,0.00018897,2]
[358421441,1745116232136,-300.0,0.00018897,2]
[358421442,1745116232146,-300.0,0.00018897,2]
[358421443,1745116232155,-5000.0,0.00018898,2]
[358421444,1745116232164,-14390.42948668,0.000189,2]
[358421445,1745116232173,-435.9965754,0.000189,2]
[358421446,1745116232183,-1167.84566433,0.000189,2]
[358421447,1745116232192,-300.0,0.000189,2]
[358421448,1745116232202,-319.25096561,0.00018973,2]
[358421449,1745116232211,-500.0,0.00018973,2]
[358421450,1745116232220,-500.0,0.00018973,2]